[Event "Baku Open 2024"]
[Site "Baku"]
[Date "2024.07.07"]
[Round "9.7"]
[White "Babazada, Khazar"]
[Black "Asadli, Vugar"]
[Result "0-1"]
[ECO "C77"]
[WhiteElo "2468"]
[BlackElo "2560"]
[Annotator "TA"]
[PlyCount "78"]
[EventDate "2024.06.29"]
[EventType "swiss"]
[EventCountry "AZE"]
[SourceTitle "playchess.com"]
[Source "ChessBase"]
[SourceQuality "1"]
[TimeControl "5400+30"]

{[%evp 16,78,33,22,19,7,14,17,17,0,0,0,0,1,7,-10,-14,-32,-15,-27,-17,-32,-37,-21,-29,-29,-26,-25,-7,-36,-32,-42,-56,-59,-53,-52,-35,-100,-120,-97,-116,-108,-106,-159,-166,-143,-153,-172,-155,-397,-390,-382,-358,-435,-393,-865,-852,-1172,-1073,-884,-777,-4862,-4858,-29980,-29981]} 1. e4 {[%emt 0:05:32]} e5 {[%emt 0:00:07]} 2. Nf3 {[%emt 0:01:26]} Nc6 {[%emt 0:00:07]} 3. Bb5 {[%emt 0:00:02]} a6 {[%emt 0:00:17]} 4. Ba4 {[%emt 0:00:03]} Nf6 {[%emt 0:00:05]} 5. d3 {[%emt 0:00:02]} d6 {[%emt 0:03:09]} 6. c3 {[%emt 0:06:51]} g6 {[%emt 0:02:46]} 7. O-O {[%emt 0:01:53]} Bg7 {[%emt 0:00:12]} 8. Re1 {[%emt 0:00:12]} O-O {[%emt 0:01:10]} 9. Nbd2 {[%emt 0:00:45]} h6 {[%emt 0:12:46]} 10. h3 {[%emt 0:07:35]} Re8 {[%emt 0:09:09]} 11. Nf1 {[%emt 0:03:56]} b5 {[%emt 0:07:42] The position is equal.} 12. Bb3 {[%emt 0:02:09]} Na5 {[%emt 0:03:21]} 13. Bc2 {[%emt 0:00:06]} c5 {[%emt 0:00:04]} 14. Ng3 {[%emt 0:11:09]} d5 {[%emt 0:07:34]} 15. a4 {[%emt 0:02:57]} b4 {[%emt 0:05:07]} 16. cxb4 {[%emt 0:12:44]} cxb4 {[%emt 0:00:52]} 17. d4 {[%emt 0:00:02]} Bb7 {[%emt 0:07:21]} 18. Nxe5 {[%emt 0:06:22]} dxe4 {[%emt 0:01:31]} 19. Bf4 {[%emt 0:03:04]} Rc8 {[%emt 0:04:26]} 20. Rc1 {[%emt 0:02:48][%cal Od1d2]} Nd5 {[%emt 0:05:45]} 21. Bd2 {[%emt 0:02:54]} Nc4 {[%emt 0:04:55] And now ...e3 would win.} 22. Nxc4 {[%emt 0:05:55]} Rxc4 {[%emt 0:00:05]} 23. Rxe4 {[%emt 0:00:04]} Rxe4 {[%emt 0:03:27]} 24. Bxe4 {[%emt 0:00:12]} Rxd4 {[%emt 0:01:48][%cal Od5b6] Strongly threatening ...Nb6!} 25. Qe2 {[%emt 0:05:34]} h5 $36 {[%emt 0:04:05][%mdl 2048] Black has some pressure.} 26. Be3 {[%emt 0:05:17] [#]} (26. Bf3 $15) 26... Rxe4 $1 $17 {[%emt 0:03:00]} 27. Nxe4 {[%emt 0:02:22] aiming for Qd2.} Nxe3 {[%emt 0:00:04]} 28. Qxe3 {[%emt 0:00:04] [#] Hoping for Qd2.} Qd5 {[%emt 0:00:02][%cal Og7b2]} 29. Re1 {[%emt 0:00:03] [#]} (29. Rc5 $142 Qxe4 30. Qxe4 Bxe4 31. Rc4) 29... f5 $1 {[%emt 0:00:04]} (29... Bxb2 30. Qd2 Qxd2 31. Nxd2 $16) 30. Qg3 {[%emt 0:00:52]} fxe4 {[%emt 0:00:15]} 31. Qxg6 {[%emt 0:00:02][%cal Ob2b3]} Kf8 {[%emt 0:02:19]} 32. Rc1 $2 {[%emt 0:03:42] This move loses the game for White.} (32. f3 $17 Bd4+ (32... exf3 33. Qe8#) (32... Bxb2 33. fxe4 Qd4+ 34. Kh1 $17) 33. Kh1) 32... Bxb2 $19 {[%emt 0:04:27] This pair of bishops is nice.} 33. Qh6+ {[%emt 0:00:57]} Bg7 {[%emt 0:00:15]} 34. Qf4+ {[%emt 0:00:03]} Kg8 {[%emt 0:01:10][%cal Oe4e3] White must now prevent ...e3!} 35. Rc7 $2 {[%emt 0:00:08] [#]} (35. Qb8+ Bf8 36. Qe8) 35... e3 $1 {[%emt 0:02:01][%csl Gb7][%cal Rd5g2]} 36. Qg3 {[%emt 0:00:14]} (36. f3 e2) 36... exf2+ {[%emt 0:01:00]} 37. Kxf2 {[%emt 0:00:10]} Qd2+ {[%emt 0:00:45]} 38. Kg1 {[%emt 0:00:05]} Qd4+ {[%emt 0:00:02]} 39. Kh2 {[%emt 0:00:35]} h4 {[%emt 0:00:43] Weighted Error Value: White=0.94/Black=0.06 (flawless) .  Loses game:     	White=1     	---        Mistake:       	White=3     	---        Inaccurate:     	White=2     	---        OK:         	White=9     	Black=14     Best:        	White=1     	Black=4      Strong:       	---       	Black=1      Brilliant:      	---       	Black=1} 0-1

[Event "Baku Open 2024"]
[Site "Baku"]
[Date "2024.07.07"]
[Round "9.8"]
[White "Zverev, Lev"]
[Black "Samadov, Read"]
[Result "0-1"]
[ECO "B81"]
[WhiteElo "2416"]
[BlackElo "2503"]
[Annotator "TA"]
[PlyCount "60"]
[EventDate "2024.06.29"]
[EventType "swiss"]
[EventCountry "AZE"]
[SourceTitle "playchess.com"]
[Source "ChessBase"]
[SourceQuality "1"]
[TimeControl "5400+30"]

{[%evp 14,60,33,23,33,0,0,14,0,0,13,6,15,7,13,10,12,0,13,0,0,7,0,0,0,0,0,0,0,-112,-2,-20,-33,-37,0,-18,-29,-289,-285,-281,-287,-285,-286,-290,-293,-274,-255,-258,-254]} 1. e4 {[%emt 0:03:48]} c5 {[%emt 0:00:09]} 2. Nf3 {[%emt 0:00:49]} d6 {[%emt 0:00:07]} 3. d4 {[%emt 0:00:10]} cxd4 {[%emt 0:00:05]} 4. Nxd4 {[%emt 0:00:10]} Nf6 {[%emt 0:00:07]} 5. Nc3 {[%emt 0:00:06]} a6 {[%emt 0:00:04]} 6. h3 {[%emt 0:00:04][%cal Bh2h3,Bh3h4][%mdl 32]} e6 {[%emt 0:00:35]} 7. g4 {[%emt 0:00:12]} h6 {[%emt 0:00:25]} 8. Bg2 {[%emt 0:00:13]} Be7 {[%emt 0:00:30]} 9. h4 {[%emt 0:00:22]} Nc6 {[%emt 0:01:25]} 10. g5 {[%emt 0:00:26]} hxg5 {[%emt 0:00:51] The position is equal.} 11. hxg5 {[%emt 0:00:11]} Rxh1+ {[%emt 0:00:08]} 12. Bxh1 {[%emt 0:00:06] [#] Threatens to win with Nxc6.} Nh7 {[%emt 0:00:24]} 13. g6 {[%emt 0:00:40]} fxg6 {[%emt 0:00:39]} 14. Nxc6 {[%emt 0:00:07]} bxc6 {[%emt 0:00:04]} 15. Qd3 {[%emt 0:00:06][%cal Oe4e5]} e5 {[%emt 0:04:03]} 16. Bd2 {[%emt 0:08:46]} Be6 {[%emt 0:03:38]} 17. O-O-O {[%emt 0:00:27]} Nf6 {[%emt 0:04:23]} 18. f4 {[%emt 0:07:06]} Qb6 {[%emt 0:05:51]} 19. fxe5 {[%emt 0:02:06]} dxe5 {[%emt 0:05:29]} 20. Qg3 {[%emt 0:00:20][%csl LRe5,LRg6]} Ng4 {[%emt 0:09:39]} 21. Qh3 {[%emt 0:07:34] [#]} (21. Bf3 $11 {keeps the balance.} Rb8 (21... Qf2 22. Qh3 $11) 22. Na4) 21... Qf2 $40 {[%emt 0:03:37][%mdl 128] White needs to defend precisely. Black is much more active.} ({Better is} 21... Rd8 $1 $17 {[%cal Od8d2] next ...Rxd2! is good for Black.} 22. Qg2 Qd4) 22. Qh8+ {[%emt 0:12:02]} Qf8 {[%emt 0:03:03]} 23. Qh3 {[%emt 0:00:50] Hoping for Bf3.} Qf2 {[%emt 0:05:42]} 24. Qh8+ {[%emt 0:00:09]} (24. Bf3 {simplifies} Qh2 25. Qxh2 Nxh2 26. Be2) 24... Bf8 {[%emt 0:05:33] aiming for ...Ne3.} 25. Bg5 {[%emt 0:04:47][%mdl 8192] This move loses the game for White.} (25. Qh3 $1 $11) 25... Ne3 $19 {[%emt 0:01:41] Black has a decisive advantage.} 26. Bxe3 {[%emt 0:06:49]} Qxe3+ {[%emt 0:00:01]} 27. Kb1 {[%emt 0:00:08]} Qh6 {[%emt 0:01:30]} 28. Qxh6 {[%emt 0:00:07]} gxh6 {[%emt 0:00:01]} 29. Bf3 {[%emt 0:00:07]} Rd8 {[%emt 0:03:33]} 30. Rg1 {[%emt 0:00:02]} Kf7 {[%emt 0:00:31] Weighted Error Value: White=0.27 (precise) /Black=0.13 (very precise) .  Loses game:     	White=1     	---        Mistake:       	White=1     	Black=1      OK:         	White=8     	Black=13     Best:        	White=2     	Black=1} 0-1

[Event "Baku Open 2024"]
[Site "Baku"]
[Date "2024.07.07"]
[Round "9.9"]
[White "Yeletsky, Ivan"]
[Black "Ilamparthi A R"]
[Result "0-1"]
[ECO "E06"]
[WhiteElo "2498"]
[BlackElo "2446"]
[Annotator "TA"]
[PlyCount "80"]
[EventDate "2024.06.29"]
[EventType "swiss"]
[EventCountry "AZE"]
[SourceTitle "playchess.com"]
[Source "ChessBase"]
[SourceQuality "1"]
[TimeControl "5400+30"]

{[%evp 9,80,12,36,22,44,28,34,18,37,36,48,16,24,-10,24,7,12,7,25,-6,-9,-57,0,0,0,0,0,-15,4,-62,-68,-49,-54,-83,-93,-114,-99,-127,-118,-197,-192,-197,-196,-195,-195,-206,-200,-185,-198,-271,-276,-336,-285,-373,-373,-372,-363,-488,-496,-519,-502,-443,-463,-704,-703,-691,-668,-1250,-1094,-1423,-1395,-29993,-29992]} 1. d4 {[%emt 0:02:08]} d5 {[%emt 0:00:26]} 2. c4 {[%emt 0:00:16]} e6 {[%emt 0:00:08]} 3. Nf3 {[%emt 0:01:59]} Nf6 {[%emt 0:00:09]} 4. g3 {[%emt 0:03:12]} Be7 {[%emt 0:00:46]} 5. Bg2 {[%emt 0:00:21]} Ne4 {[%emt 0:00:10]} 6. Nc3 {[%emt 0:08:32]} f5 {[%emt 0:00:30]} 7. Qc2 {[%emt 0:06:55]} c6 {[%emt 0:01:02]} 8. Rb1 {[%emt 0:04:28] White is slightly better.} a5 {[%emt 0:07:45]} 9. O-O {[%emt 0:03:18]} Nd7 {[%emt 0:01:33]} 10. a3 {[%emt 0:02:02]} O-O {[%emt 0:05:59]} 11. Nd2 {[%emt 0:10:23]} Bf6 {[%emt 0:10:59]} 12. Ndxe4 {[%emt 0:02:34]} fxe4 {[%emt 0:00:11]} 13. Rd1 {[%emt 0:02:09]} Nb6 {[%emt 0:03:57]} 14. c5 {[%emt 0:08:01]} Nd7 {[%emt 0:00:11]} 15. Bf4 {[%emt 0:00:15]} (15. Be3 $11 {is superior.}) 15... Qe8 {[%emt 0:04:57]} 16. Bd6 {[%emt 0:09:25]} Be7 {[%emt 0:00:38]} 17. Bxe7 {[%emt 0:03:46]} Qxe7 {[%emt 0:00:03]} 18. f3 {[%emt 0:00:26]} e5 {[%emt 0:09:05]} 19. Na4 {[%emt 0:08:37]} (19. fxe4 $11 exd4 20. Na4) 19... exf3 $1 $15 {[%emt 0:19:32]} 20. exf3 {[%emt 0:00:20]} exd4 {[%emt 0:00:07] White must now prevent ...Ne5.} 21. Rxd4 {[%emt 0:00:30] [#]} Ne5 $1 $36 {[%emt 0:02:20][%mdl 2048] Black is on the roll. Black converts the advantage convincingly.} 22. Qe2 {[%emt 0:08:42]} Qf6 {[%emt 0:02:20]} 23. Rf4 {[%emt 0:01:26]} Bf5 {[%emt 0:00:08]} 24. g4 {[%emt 0:07:31]} (24. Bh3 $17 g6 25. Bxf5 gxf5 (25... g5 $2 26. Bxh7+ Kxh7 27. Rxf6 $18) 26. Nc3) 24... Bd3 $1 $19 {[%emt 0:00:19]} 25. Rxf6 {[%emt 0:00:08]} Bxe2 {[%emt 0:00:06]} 26. Rxf8+ {[%emt 0:01:28]} Rxf8 {[%emt 0:00:02]} 27. Re1 {[%emt 0:00:31]} Nxf3+ {[%emt 0:00:06]} 28. Bxf3 {[%emt 0:00:06]} Bxf3 {[%emt 0:00:05][%mdl 4096] Endgame. KRB-KRN} 29. Re7 {[%emt 0:02:22]} (29. h3 $142) 29... Bxg4 {[%emt 0:00:33] Strongly threatening ...Bh3.} 30. h4 {[%emt 0:01:10]} Rd8 {[%emt 0:03:09] ...d4 would now be deadly.} 31. Kf2 {[%emt 0:00:36]} Rd7 {[%emt 0:00:15]} 32. Re8+ {[%emt 0:01:06]} Kf7 {[%emt 0:00:02]} 33. Rb8 {[%emt 0:00:08]} Kg6 {[%emt 0:01:58]} 34. Nb6 {[%emt 0:00:14]} Re7 {[%emt 0:00:31]} 35. Kg3 {[%emt 0:00:41]} Kh5 {[%emt 0:00:39]} 36. a4 {[%emt 0:00:10]} (36. b4 $142) 36... h6 {[%emt 0:01:41]} 37. Rg8 {[%emt 0:00:49]} Rf7 {[%emt 0:02:23]} 38. Ra8 {[%emt 0:01:26]} Rf3+ {[%emt 0:00:09]} 39. Kg2 {[%emt 0:00:08]} Kxh4 {[%emt 0:00:11] [#] ( -> ...Rf6)} 40. Rxa5 {[%emt 0:00:11]} Rf4 {[%emt 0:00:24] Weighted Error Value: White=0.55/Black=0.09 (flawless) .  Mistake:       	White=5     	---        Inaccurate:     	White=6     	Black=2      OK:         	White=10    	Black=9      Best:        	White=1     	Black=5      Strong:       	---       	Black=3} 0-1

[Event "Baku Open 2024"]
[Site "Baku"]
[Date "2024.07.07"]
[Round "9.10"]
[White "Ibrahimli, Murad"]
[Black "Shyam, Sundar M."]
[Result "0-1"]
[ECO "E11"]
[WhiteElo "2400"]
[BlackElo "2493"]
[Annotator "RC"]
[PlyCount "78"]
[EventDate "2024.06.29"]
[EventType "swiss"]
[EventCountry "AZE"]
[SourceTitle "playchess.com"]
[Source "ChessBase"]
[SourceQuality "1"]
[TimeControl "5400+30"]

1. d4 {[%emt 0:00:56]} Nf6 {[%emt 0:01:59]} 2. c4 {[%emt 0:00:12]} e6 {[%emt 0:00:12]} 3. Nf3 {[%emt 0:00:11]} Bb4+ {[%emt 0:00:08]} 4. Nbd2 {[%emt 0:04:43]} O-O {[%emt 0:00:07]} 5. a3 {[%emt 0:01:48]} Be7 {[%emt 0:00:05]} 6. e4 {[%emt 0:02:17]} d6 {[%emt 0:00:03]} 7. Bd3 {[%emt 0:01:32]} Nfd7 {[%emt 0:01:06]} 8. b4 {[%emt 0:01:51]} e5 {[%emt 0:03:49]} 9. d5 {[%emt 0:00:30]} a5 {[%emt 0:01:49]} 10. Rb1 {[%emt 0:00:24]} Na6 {[%emt 0:00:23]} 11. O-O {[%emt 0:08:12]} g6 {[%emt 0:00:43]} 12. Rb3 {[%emt 0:06:52]} axb4 {[%emt 0:09:36]} 13. axb4 {[%emt 0:00:05]} c5 {[%emt 0:00:02]} 14. dxc6 {[%emt 0:16:14]} bxc6 {[%emt 0:00:02]} 15. Re1 {[%emt 0:01:36]} c5 {[%emt 0:03:25]} 16. b5 {[%emt 0:00:27]} Nb4 {[%emt 0:00:04]} 17. Bf1 {[%emt 0:03:01]} Nb6 {[%emt 0:04:34]} 18. Ba3 {[%emt 0:02:13]} Be6 {[%emt 0:04:11]} 19. Qb1 {[%emt 0:01:28]} Qc7 {[%emt 0:02:24]} 20. h4 {[%emt 0:06:29]} Ra4 {[%emt 0:11:09]} 21. Ng5 {[%emt 0:06:44]} Bd7 {[%emt 0:01:32]} 22. Rc1 {[%emt 0:16:31]} Rfa8 {[%emt 0:12:30]} 23. Rcc3 {[%emt 0:03:55]} Qd8 {[%emt 0:05:14]} 24. Ngf3 {[%emt 0:00:25]} R8a7 {[%emt 0:00:48]} 25. g3 {[%emt 0:00:16]} Qa8 {[%emt 0:00:18]} 26. Bxb4 {[%emt 0:08:07]} cxb4 {[%emt 0:00:12]} 27. Rxb4 {[%emt 0:00:04]} Ra1 {[%emt 0:04:00]} 28. Qd3 {[%emt 0:00:24]} Na4 {[%emt 0:06:03]} 29. Ra3 {[%emt 0:05:11]} Nc5 {[%emt 0:08:53]} 30. Rxa7 {[%emt 0:00:05]} Qxa7 {[%emt 0:00:01]} 31. Qe3 {[%emt 0:01:01]} Ra3 {[%emt 0:02:45]} 32. Qh6 {[%emt 0:01:26]} f6 {[%emt 0:02:10]} 33. b6 {[%emt 0:01:09]} Qb7 {[%emt 0:05:09]} 34. Nb1 {[%emt 0:00:36]} Rxf3 {[%emt 0:00:07]} 35. Be2 {[%emt 0:00:01]} Rb3 {[%emt 0:00:38]} 36. Rxb3 {[%emt 0:00:04]} Nxb3 {[%emt 0:00:02]} 37. Nc3 {[%emt 0:00:10]} Be6 {[%emt 0:02:42]} 38. h5 {[%emt 0:00:46]} Bf8 {[%emt 0:00:15]} 39. Qe3 {[%emt 0:00:02]} Nc5 {[%emt 0:00:09]} 0-1

[Event "Baku Open 2024"]
[Site "Baku"]
[Date "2024.07.07"]
[Round "9.11"]
[White "Pranav Vijay"]
[Black "Mamedov, Edgar"]
[Result "1-0"]
[ECO "A07"]
[WhiteElo "2252"]
[BlackElo "2410"]
[Annotator "TA"]
[PlyCount "53"]
[EventDate "2024.06.29"]
[EventType "swiss"]
[EventCountry "AZE"]
[SourceTitle "playchess.com"]
[Source "ChessBase"]
[SourceQuality "1"]
[TimeControl "5400+30"]

{[%evp 9,53,25,33,22,29,27,33,42,31,35,60,9,37,18,49,29,46,33,66,32,130,128,127,112,145,140,154,146,139,149,133,155,174,168,213,212,478,485,824,812,891,850,1171,1134,1212,1224]} 1. Nf3 {[%emt 0:03:40]} d5 {[%emt 0:00:18]} 2. g3 {[%emt 0:00:06]} b6 {[%emt 0:00:21]} 3. Bg2 {[%emt 0:00:49]} Bb7 {[%emt 0:00:06]} 4. c4 {[%emt 0:02:04]} dxc4 {[%emt 0:00:22]} 5. Na3 {[%emt 0:00:17]} e6 {[%emt 0:01:02]} 6. Nxc4 {[%emt 0:00:17]} Nd7 {[%emt 0:00:59]} 7. O-O {[%emt 0:00:28]} Ngf6 {[%emt 0:02:07]} 8. Nce5 {[%emt 0:00:14][%cal Oe5f7] Black must now prevent Nxf7! White is slightly better.} Qc8 {[%emt 0:04:18]} 9. d4 {[%emt 0:01:47][%cal Oe5f7]} Bd6 {[%emt 0:01:19]} 10. Nc4 {[%emt 0:09:45]} ({White should try} 10. Bg5 $14) 10... Be7 {[%emt 0:06:13]} 11. Bf4 {[%emt 0:03:04]} Nd5 {[%emt 0:04:41]} 12. Bd2 {[%emt 0:13:17]} O-O {[%emt 0:01:22]} 13. Rc1 {[%emt 0:00:23]} c5 {[%emt 0:21:25]} 14. dxc5 {[%emt 0:05:17]} Nxc5 {[%emt 0:00:23] [#]} (14... bxc5 $14 15. Re1 N5f6) 15. b4 $1 $16 {[%emt 0:16:15]} Ne4 {[%emt 0:00:53][%cal Oe4d2] [#]} 16. Nxb6 $1 {[%emt 0:00:24][%mdl 512]} axb6 {[%emt 0:01:44]} (16... Qxc1 17. Bxc1) 17. Rxc8 {[%emt 0:00:06]} Rfxc8 {[%emt 0:00:24]} 18. Ne5 {[%emt 0:04:25]} Nxd2 {[%emt 0:06:43] [#]} 19. Bxd5 $1 {[%emt 0:00:23]} Bxd5 {[%emt 0:00:54]} 20. Qxd2 {[%emt 0:00:06]} Rxa2 {[%emt 0:07:47]} 21. Qf4 {[%emt 0:00:21]} f5 {[%emt 0:04:31]} 22. Nd7 {[%emt 0:01:06]} Bd8 {[%emt 0:01:18]} (22... Rcc2 23. Nxb6 Be4) 23. e4 $18 {[%emt 0:03:01][%cal Be2e4,Be4f5,Bf5e6][%mdl 32] White is clearly winning.} Bc4 {[%emt 0:10:01]} (23... Bc7 $142) 24. Rc1 {[%emt 0:01:12]} Raa8 {[%emt 0:11:49]} 25. exf5 {[%emt 0:02:26]} Bd5 {[%emt 0:04:42]} 26. Rxc8 {[%emt 0:00:13]} Rxc8 {[%emt 0:00:05]} 27. fxe6 {[%emt 0:00:11] Weighted Error Value: White=0.08 (flawless) /Black=0.51.  Mistake:       	White=1     	Black=3      Inaccurate:     	White=1     	Black=3      OK:         	White=9     	Black=3      Best:        	White=1     	---        Strong:       	White=2     	---        Brilliant:      	White=1     	---} 1-0

[Event "Baku Open 2024"]
[Site "Baku"]
[Date "2024.07.07"]
[Round "9.12"]
[White "Novozhilov, Semen"]
[Black "Gokerkan, Cem Kaan"]
[Result "1-0"]
[ECO "E05"]
[WhiteElo "2288"]
[BlackElo "2512"]
[Annotator "TA"]
[PlyCount "115"]
[EventDate "2024.06.29"]
[EventType "swiss"]
[EventCountry "AZE"]
[SourceTitle "playchess.com"]
[Source "ChessBase"]
[SourceQuality "1"]
[TimeControl "5400+30"]

{[%evp 20,115,45,19,21,30,52,6,29,-33,-46,-33,-38,-75,-52,-68,-48,-37,-35,-35,-40,-37,0,0,0,0,54,16,37,31,51,21,60,0,110,122,147,166,175,142,150,146,143,131,170,0,0,0,0,0,0,0,62,0,120,83,365,353,332,64,35,29,88,44,506,502,495,510,527,484,595,595,595,595,595,595,567,593,600,600,600,600,737,649,614,626,649,647,1277,1029,943,1020,4690,3010,29997,0,29998,29999]} 1. d4 {[%emt 0:00:01]} Nf6 {[%emt 0:08:16]} 2. c4 {[%emt 0:00:06]} e6 {[%emt 0:00:04]} 3. Nf3 {[%emt 0:00:06]} d5 {[%emt 0:00:03]} 4. g3 {[%emt 0:00:05]} Be7 {[%emt 0:00:08]} 5. Bg2 {[%emt 0:00:06]} O-O {[%emt 0:00:04]} 6. O-O {[%emt 0:00:05]} dxc4 {[%emt 0:00:04]} 7. Qc2 {[%emt 0:00:11]} b5 {[%emt 0:00:17]} 8. a4 {[%emt 0:00:42] E05: Open Catalan: 5 Nf3 Be7.} b4 {[%emt 0:00:04]} 9. Nfd2 {[%emt 0:15:22]} Nd5 {[%emt 0:00:31]} 10. Nxc4 {[%emt 0:01:54]} c5 {[%emt 0:00:21]} 11. dxc5 {[%emt 0:09:49]} Bxc5 {[%emt 0:00:29]} 12. e4 {[%emt 0:11:59]} Nb6 {[%emt 0:00:44]} 13. Rd1 {[%emt 0:04:56]} (13. Ncd2 $14 N8d7 14. a5) 13... N8d7 $1 $11 {[%emt 0:02:38]} 14. Ne5 {[%emt 0:05:57]} (14. Nxb6 $11 axb6 15. Nd2) 14... a5 $1 $15 {[%emt 0:27:52]} 15. Bf4 {[%emt 0:14:37]} Ba6 {[%emt 0:03:18]} 16. Bf1 $146 {[%emt 0:09:59]} ({Predecessor:} 16. Nd2 Be2 17. Re1 Rc8 18. Qb3 Nxe5 19. Rxe2 Nd3 20. Rd1 Nxf4 21. gxf4 Qf6 22. Qf3 Qxb2 {0-1 Budzisz,A (2064)-Suder,J (2321) POL-ch U18 Sypniewo 2022 (9)}) 16... Bxf1 {[%emt 0:03:34]} 17. Kxf1 {[%emt 0:00:10]} Rc8 {[%emt 0:01:00]} 18. Qe2 {[%emt 0:01:10]} Qe7 {[%emt 0:06:15]} 19. Nxd7 {[%emt 0:03:19]} Nxd7 {[%emt 0:00:02]} 20. Nd2 {[%emt 0:00:26]} e5 {[%emt 0:12:50]} 21. Be3 {[%emt 0:00:07]} Qe6 {[%emt 0:04:36]} 22. Rac1 {[%emt 0:03:49]} h6 {[%emt 0:10:47]} (22... Bxe3 $11 23. Qxe3 Nf6) 23. Nc4 {[%emt 0:08:56]} Nf6 {[%emt 0:09:43]} 24. Bxc5 {[%emt 0:01:18]} Rxc5 {[%emt 0:00:01]} 25. b3 {[%emt 0:00:15]} (25. Kg2 {keeps more tension.} b3 26. Rd6 Qc8 27. Rb6) 25... Rfc8 {[%emt 0:01:21]} (25... h5 {is more complex.} 26. Kg2 h4 27. Rd2 h3+) 26. Rc2 {[%emt 0:00:52]} (26. Kg2 $14) 26... Nd7 {[%emt 0:01:20]} (26... Qh3+ $11 {remains equal.} 27. Kg1 Nh7) 27. Kg2 $16 {[%emt 0:00:24]} R8c6 {[%emt 0:03:21]} 28. Rcd2 {[%emt 0:00:40]} Nf6 {[%emt 0:01:32]} 29. f3 {[%emt 0:01:19]} Qe7 {[%emt 0:00:23]} 30. Rd8+ {[%emt 0:01:07]} Kh7 {[%emt 0:00:00]} 31. Qd3 {[%emt 0:00:20]} Qc7 {[%emt 0:01:17]} 32. Ra8 $2 {[%emt 0:00:39]} (32. Rd2 $18) 32... Rxc4 $1 $11 {[%emt 0:01:08]} 33. bxc4 {[%emt 0:00:04]} Rxc4 {[%emt 0:00:01]} 34. Rd2 {[%emt 0:01:52]} Rc1 $1 {[%emt 0:00:03]} 35. Rf2 {[%emt 0:02:19]} Qc5 {[%emt 0:01:12]} ({Black should play} 35... Nd7 $11) 36. Rb8 {[%emt 0:00:28]} (36. Ra6 $1 $14) 36... Ra1 {[%emt 0:01:27]} (36... Rc3 $1 $11 37. Qb5 Qd6) 37. Qc2 {[%emt 0:00:37]} Qe3 $2 {[%emt 0:00:23][%mdl 8192]} (37... Qxc2 $16 38. Rxc2 Rxa4) 38. Qc8 $18 {[%emt 0:00:21]} Qg5 {[%emt 0:00:18]} 39. Qf5+ $2 {[%emt 0:00:22]} (39. Rb5 $18) 39... Qxf5 $14 {[%emt 0:00:07]} 40. exf5 {[%emt 0:00:01]} Rxa4 {[%emt 0:01:34]} (40... Nd5 $1 $11) 41. Rc2 {[%emt 0:00:28]} g6 $2 {[%emt 0:00:23][%mdl 8192]} ({Black should try} 41... Nd5 $14 42. Kf2 Nc3) 42. Rc6 $18 {[%emt 0:00:14]} Kg7 {[%emt 0:01:03]} 43. fxg6 {[%emt 0:00:01]} Ra2+ {[%emt 0:00:08]} 44. Kh3 {[%emt 0:00:01]} Rf2 {[%emt 0:00:13]} 45. gxf7 {[%emt 0:00:33]} Kxf7 {[%emt 0:00:01]} 46. Rb7+ {[%emt 0:00:59]} Kg6 {[%emt 0:00:00]} 47. f4 {[%emt 0:01:03]} exf4 {[%emt 0:00:02] [#]} 48. g4 $1 {[%emt 0:00:10]} Rf3+ {[%emt 0:00:00]} 49. Kh4 {[%emt 0:00:20]} Rc3 {[%emt 0:00:01]} 50. Ra6 {[%emt 0:00:16]} Rc8 {[%emt 0:01:33]} 51. Rbb6 {[%emt 0:00:04]} Rf8 {[%emt 0:00:03]} 52. Rxa5 {[%emt 0:00:07]} f3 {[%emt 0:00:18]} 53. Rf5 {[%emt 0:00:07]} h5 {[%emt 0:00:32]} 54. Rxh5 {[%emt 0:01:05]} (54. gxh5+ Kxf5 55. Rb5+ Kf4 56. Rxb4+ Ne4 57. h6 f2 58. Rb1 Nd2 59. Ra1 Nf3+ (59... f1=R 60. Rxf1+ Nxf1 61. h7 Rh8 62. Kh5 Rxh7+ 63. Kg6 Rxh2 64. Kf7 Re2 65. Kg6 Ng3 66. Kg7 Kg5 67. Kf7 Nf5 68. Kg8 Re7 69. Kf8 Kg6 70. Kg8 Re8#) 60. Kh5 Ne1 (60... Nxh2 $2 61. h7 $19) (60... Rf5+ $2 61. Kg6 $19) 61. Ra4+ Ke5 (61... Ke3 62. Ra3+ Kd2 63. Ra2+ Nc2 64. h7 f1=Q 65. Ra5 Qf7+ 66. Kh6 Rh8 67. Kg5 Rxh7 68. Ra6 Rh5+ 69. Kg4 Ne3+ 70. Kg3 Rg5+ 71. Kh4 Qh5#) 62. Ra5+ Kd4 63. Ra4+ Kc3 64. Ra3+ Kb4 65. Rg3 f1=Q (65... f1=R $2 66. h7 $19) 66. Rg4+ Kc3 67. Rg3+ Nd3 68. Kh4 Qf4+ 69. Rg4 Qxh6+ (69... Qxh2+ 70. Kg5 Rg8+ 71. Kf6 Qxh6+ 72. Kf7 Rxg4 73. Ke7 Rg7+ 74. Kf8 Qh8#) 70. Kg3 Qe3+ 71. Kg2 Qf3+ 72. Kg1 Qf1#) 54... f2 {[%emt 0:00:22]} 55. Rf5 {[%emt 0:00:30]} Kg7 {[%emt 0:00:34]} 56. Rb7+ {[%emt 0:00:25]} ({Not} 56. Rxb4 Ne4 57. Rb7+ (57. Rxe4 Rxf5 58. gxf5 f1=Q $19) 57... Kg8 $11) 56... Kg6 {[%emt 0:00:12]} 57. Rg5+ {[%emt 0:00:27]} Kh6 {[%emt 0:00:01]} 58. Rbg7 $1 {[%emt 0:00:07]} 1-0

[Event "Baku Open 2024"]
[Site "Baku"]
[Date "2024.07.07"]
[Round "9.13"]
[White "Agmanov, Zhandos"]
[Black "Kamalidenova, Meruert"]
[Result "1/2-1/2"]
[ECO "C47"]
[WhiteElo "2464"]
[BlackElo "2360"]
[Annotator "TA"]
[PlyCount "21"]
[EventDate "2024.06.29"]
[EventType "swiss"]
[EventCountry "AZE"]
[SourceTitle "playchess.com"]
[Source "ChessBase"]
[SourceQuality "1"]
[TimeControl "5400+30"]

{[%evp 16,21,1,-2,7,0,10,10]} 1. e4 {[%emt 0:05:00]} e5 {[%emt 0:00:05]} 2. Nf3 {[%emt 0:00:37]} Nc6 {[%emt 0:00:11]} 3. Nc3 {[%emt 0:00:32]} Nf6 {[%emt 0:00:07]} 4. d4 {[%emt 0:00:04]} exd4 {[%emt 0:00:04]} 5. Nxd4 {[%emt 0:00:03]} Bb4 {[%emt 0:00:10]} 6. Nxc6 {[%emt 0:00:07]} bxc6 {[%emt 0:00:04]} 7. Bd3 {[%emt 0:00:06]} d5 {[%emt 0:00:32]} 8. Bd2 {[%emt 0:00:05]} O-O {[%emt 0:02:19]} 9. O-O {[%emt 0:00:23][%cal Oc3d5] The position is equal.} Bxc3 {[%emt 0:07:48]} 10. Bxc3 {[%emt 0:00:10]} Nxe4 {[%emt 0:02:51]} 11. Bxe4 {[%emt 0:00:07] An uneventful encounter.   OK:         	---       	Black=1} 1/2-1/2